bitfinex/quotes_BTCUSD_20250406
["timestamp","ask_amount","ask_price","bid_price","bid_amount"]
[1743962218615,0.005,80794.0,80791.0,0.22987297]
[1743962219341,0.005,80794.0,80792.0,0.01454085]
[1743962219502,0.0053386,80794.0,80793.0,0.12290297]
[1743962219703,0.0003386,80794.0,80793.0,0.12290297]
[1743962219912,0.0003386,80794.0,80793.0,0.24580065]
[1743962220119,0.05,80800.0,80795.0,0.005]
[1743962220434,0.005,80868.0,80793.0,0.2603415]
[1743962220435,0.0003386,80815.0,80806.0,0.005]
[1743962220642,0.0003386,80815.0,80808.0,0.01454085]
[1743962220986,0.0003386,80815.0,80791.0,0.01454085]
[1743962221160,0.0003386,80815.0,80796.0,0.025]
[1743962221361,0.0003386,80815.0,80797.0,0.12290297]
[1743962221781,0.0003386,80815.0,80796.0,4.573e-05]
[1743962221782,0.34,80809.0,80796.0,4.573e-05]
[1743962221959,0.34,80807.0,80796.0,4.573e-05]
[1743962222321,0.34,80805.0,80796.0,4.573e-05]
[1743962222525,0.34,80805.0,80796.0,0.1070103]
[1743962222646,0.03756746,80804.0,80796.0,0.1070103]
[1743962222850,0.00486499,80803.0,80797.0,0.12290297]
[1743962223070,0.34,80802.0,80797.0,0.12290297]
[1743962223513,0.00490692,80801.0,80798.0,0.01454085]
[1743962223678,0.3443386,80815.0,80799.0,0.15057058]
[1743962223876,0.3443386,80815.0,80799.0,0.14809589]
[1743962224076,0.3403386,80815.0,80799.0,0.14809589]
[1743962224276,0.0003386,80815.0,80804.0,0.12290297]
[1743962225859,0.2063386,80815.0,80804.0,0.12290297]
[1743962226081,0.2063386,80815.0,80805.0,0.01730959]
[1743962226253,0.2063386,80815.0,80806.0,0.12290297]
[1743962226865,0.2113386,80815.0,80806.0,0.12290297]
[1743962227317,0.2063386,80815.0,80806.0,0.12290297]
[1743962227531,0.0003386,80815.0,80807.0,0.00247473]
[1743962227713,0.0003386,80815.0,80808.0,0.1371717]
[1743962227925,0.0053386,80815.0,80808.0,0.1371717]
[1743962228284,0.0003386,80815.0,80808.0,0.1371717]
[1743962228483,0.0003386,80815.0,80809.0,0.01454085]
[1743962228805,0.0053386,80815.0,80810.0,0.13980518]
[1743962228964,0.0073386,80815.0,80810.0,0.13980518]
[1743962229871,0.0023386,80815.0,80810.0,0.18980518]
[1743962230274,0.0073386,80815.0,80810.0,0.15266957]
[1743962230695,0.0023386,80815.0,80810.0,0.15266957]
[1743962230894,0.0073386,80815.0,80811.0,0.01526696]
[1743962231169,0.0073386,80815.0,80810.0,0.05]
[1743962231344,0.4345,80814.0,80810.0,0.05]
[1743962231750,0.005,80811.0,80810.0,0.05]
[1743962231906,1.08833897,80811.0,80810.0,0.05]
[1743962232108,0.63415697,80811.0,80810.0,0.05]
[1743962232363,0.67161418,80811.0,80810.0,0.0032]
[1743962232598,0.61830718,80811.0,80810.0,0.0032]
[1743962232870,0.37745721,80811.0,80810.0,0.0032]
[1743962233092,0.58329721,80811.0,80810.0,0.0032]
[1743962233355,0.54584,80811.0,80810.0,0.0032]
[1743962233784,0.5458,80811.0,80810.0,0.0032]
[1743962234683,0.5558,80811.0,80810.0,0.0032]
[1743962234917,0.71617115,80811.0,80810.0,0.0032]
[1743962235380,0.5558,80811.0,80810.0,0.0032]
[1743962236466,0.5558,80811.0,80796.0,4.573e-05]
[1743962236676,0.005,80798.0,80790.0,1.03587932]
[1743962236878,0.0539,80792.0,80790.0,1.03593443]
[1743962237083,0.3916,80791.0,80790.0,1.03593443]
[1743962237420,0.51450297,80791.0,80790.0,1.03593443]
[1743962238279,0.55184806,80791.0,80790.0,1.03593443]
[1743962238883,0.12290297,80791.0,80790.0,1.03593443]
[1743962239283,0.23737297,80791.0,80790.0,1.03593443]
[1743962239487,0.24237297,80791.0,80790.0,1.03593443]
[1743962239924,0.23737297,80791.0,80790.0,1.03593443]
[1743962240110,0.23737297,80791.0,80737.0,0.0012694]
[1743962240111,0.23737297,80791.0,80758.0,1.06948]
[1743962240112,0.15,80783.0,80758.0,1.06948]
[1743962240302,0.51609476,80783.0,80758.0,1.06948]
[1743962240548,0.51609476,80783.0,80782.0,0.00014568]
[1743962240751,0.85609476,80783.0,80782.0,0.00014568]
[1743962241311,0.54568,80783.0,80782.0,0.00014568]
[1743962241919,0.34,80783.0,80782.0,0.00014568]
[1743962242078,0.54572,80783.0,80782.0,0.00014568]
[1743962242279,0.20572,80783.0,80782.0,0.12304865]
[1743962242484,0.20572,80783.0,80782.0,0.13519676]
[1743962242900,0.03713561,80785.0,80782.0,0.13519676]
[1743962243281,0.005,80783.0,80782.0,0.13519676]
[1743962243734,0.03713561,80785.0,80782.0,0.13500956]
[1743962244135,0.04213561,80785.0,80782.0,0.13500956]
[1743962244296,0.04213561,80785.0,80783.0,0.01352789]
[1743962244524,0.04213561,80785.0,80784.0,0.12290297]
[1743962245395,0.03713561,80785.0,80784.0,0.12290297]
[1743962245586,0.03713561,80785.0,80784.0,1.19254297]
[1743962245787,0.04213561,80785.0,80784.0,1.19254297]
[1743962246013,0.04213561,80785.0,80784.0,1.06964]
[1743962246449,0.03713561,80785.0,80784.0,1.17663093]
[1743962246653,0.04213561,80785.0,80784.0,1.17663093]
[1743962246847,0.04213561,80785.0,80784.0,1.06964]
[1743962247417,0.47763561,80785.0,80784.0,1.06964]
[1743962247703,1.41825676,80785.0,80784.0,1.06964]
[1743962247949,1.95819976,80785.0,80784.0,1.02284]
[1743962248121,0.34,80784.0,80782.0,0.0001692]
[1743962248352,0.50034815,80783.0,80782.0,0.0001692]
[1743962248465,1.35360315,80783.0,80782.0,0.0001692]
[1743962248865,1.35360315,80783.0,80758.0,1.06964]
[1743962248866,0.34,80782.0,80758.0,1.06964]
[1743962249069,0.34,80767.0,80758.0,1.06964]
[1743962249270,0.34,80765.0,80758.0,1.06968573]
[1743962251488,0.34,80761.0,80758.0,1.06968573]
[1743962251625,0.15,80762.0,80758.0,1.06968573]
[1743962251626,0.34,80759.0,80758.0,1.06968573]
[1743962251846,0.95888513,80759.0,80758.0,1.06968573]
[1743962252047,0.91598813,80759.0,80758.0,1.06968573]
[1743962253014,0.81191413,80759.0,80758.0,1.06968573]
[1743962253216,0.80691413,80759.0,80758.0,1.06968573]
[1743962253433,0.44790316,80759.0,80758.0,1.06968573]
[1743962253650,0.65838316,80759.0,80758.0,1.06968573]
[1743962254086,0.345,80759.0,80758.0,1.06968573]
[1743962254304,0.55052,80759.0,80758.0,1.06968573]
[1743962256818,0.7211,80759.0,80758.0,1.06968573]
[1743962257353,0.84400297,80759.0,80758.0,1.06968573]
[1743962257569,0.89040297,80759.0,80758.0,1.06968573]
[1743962258013,0.93650297,80759.0,80758.0,1.06968573]
[1743962258281,0.93150297,80759.0,80758.0,4.573e-05]
[1743962258496,0.93650297,80759.0,80758.0,4.573e-05]
[1743962259029,0.93150297,80759.0,80758.0,4.573e-05]
[1743962259255,0.93650297,80759.0,80758.0,4.573e-05]
[1743962259720,0.93150297,80759.0,80758.0,4.573e-05]
[1743962260498,0.34,80769.0,80758.0,4.573e-05]
[1743962260657,0.2054,80759.0,80758.0,0.00021503]
[1743962261056,1.56374097,80759.0,80758.0,0.00021503]
[1743962261264,1.70002258,80759.0,80758.0,0.00021503]
[1743962261548,1.68289197,80759.0,80758.0,0.00021503]
[1743962262123,1.20279197,80759.0,80758.0,0.00021503]
[1743962262330,0.87903697,80759.0,80758.0,0.00021503]
[1743962262900,0.67330297,80759.0,80758.0,0.00021503]
[1743962263121,0.55036,80759.0,80758.0,0.00021503]
[1743962263481,0.345,80759.0,80758.0,0.00021503]
[1743962263683,0.55036,80759.0,80758.0,0.00021503]
[1743962263879,0.345,80759.0,80758.0,0.00021503]
[1743962264335,0.005,80759.0,80758.0,0.123118]
[1743962264551,0.005,80759.0,80758.0,0.1354298]
[1743962264760,0.20532,80771.0,80758.0,0.1354298]
[1743962264995,0.20532,80771.0,80759.0,0.12537903]
[1743962266019,0.34,80770.0,80759.0,0.12537903]
[1743962266223,0.005,80771.0,80759.0,0.12537903]
[1743962266505,0.20528,80792.0,80771.0,0.025]
[1743962266709,0.1981,80818.0,80776.0,0.12290297]
[1743962266927,0.34,80809.0,80776.0,0.1203782]
[1743962267128,0.20528,80808.0,80780.0,0.12290297]
[1743962267338,0.48775529,80808.0,80781.0,0.0170903]
[1743962267545,0.00247529,80807.0,80782.0,0.12290297]
[1743962268577,0.005,80792.0,80782.0,0.12290297]
[1743962269001,0.10752714,80803.0,80782.0,0.12290297]
[1743962269185,0.34247529,80802.0,80782.0,0.12290297]
[1743962269420,0.34,80802.0,80783.0,0.01879933]
[1743962269622,0.00247529,80801.0,80784.0,0.12290297]
[1743962269822,0.20516,80800.0,80784.0,0.12290297]
[1743962270059,0.005,80792.0,80784.0,0.12290297]
[1743962270277,0.12790297,80792.0,80785.0,0.12290297]
[1743962270494,0.12790297,80792.0,80772.0,1.07012]
[1743962270495,0.34,80790.0,80772.0,1.07012]
[1743962270744,0.34,80781.0,80772.0,1.07016573]
[1743962270953,0.00247529,80780.0,80772.0,1.07016573]
[1743962271156,0.03992538,80780.0,80772.0,1.07016573]
[1743962271549,0.03745009,80779.0,80772.0,1.07016573]
[1743962271775,0.34,80777.0,80772.0,1.07016573]
[1743962271982,0.03992538,80776.0,80772.0,1.07016573]
[1743962272126,0.03745009,80775.0,80772.0,1.1771823]
[1743962272359,0.00247529,80774.0,80772.0,1.07016573]
[1743962272589,0.00247529,80774.0,80772.0,1.12016573]
[1743962272803,0.34,80777.0,80772.0,1.12016573]
[1743962273037,0.03748705,80776.0,80772.0,1.12016573]
[1743962273274,0.00247529,80775.0,80772.0,1.12016573]
[1743962273688,0.005,80774.0,80772.0,1.12016573]
[1743962274574,0.03751592,80773.0,80772.0,1.12016573]
[1743962274777,0.24255592,80773.0,80772.0,1.12016573]
[1743962274981,0.005,80774.0,80772.0,1.12016573]
[1743962275319,0.20504,80773.0,80772.0,1.12016573]
[1743962275541,0.20504,80773.0,80772.0,1.10016573]
[1743962276524,0.24256406,80773.0,80772.0,1.10016573]
[1743962277592,0.24256406,80773.0,80772.0,2.10016573]
[1743962277792,0.53043806,80773.0,80772.0,2.10016573]
[1743962278000,0.90220406,80773.0,80772.0,2.10016573]
[1743962278200,0.84743406,80773.0,80772.0,2.10016573]
[1743962278413,0.58756406,80773.0,80772.0,2.10016573]
[1743962278806,0.58756406,80773.0,80772.0,1.05004573]
[1743962278807,1.63312203,80773.0,80772.0,1.05004573]
[1743962279072,5.20819288,80773.0,80772.0,0.71115892]
[1743962279284,5.97230788,80773.0,80772.0,0.61435892]
[1743962279473,5.81771586,80773.0,80772.0,0.61435892]
[1743962279679,5.82397014,80773.0,80772.0,0.56755892]
[1743962279863,5.82397014,80773.0,80772.0,0.55826659]
[1743962280074,5.82897014,80773.0,80772.0,0.55826659]
[1743962280276,6.09897014,80773.0,80772.0,0.55826659]
[1743962280487,5.06357414,80773.0,80772.0,0.55826659]
[1743962281526,5.47417414,80773.0,80772.0,0.54113598]
[1743962281730,0.49,80760.0,80759.0,0.0501692]
[1743962281955,5.65042703,80760.0,80759.0,0.05021485]
[1743962282176,0.66168131,80760.0,80759.0,0.05021485]
[1743962282608,0.61620832,80760.0,80759.0,0.05021485]
[1743962282815,0.57868426,80760.0,80759.0,0.05021485]
[1743962283025,0.23868426,80760.0,80759.0,0.05021485]
[1743962284352,0.23868426,80760.0,80759.0,0.10021485]
[1743962284552,0.23868426,80760.0,80759.0,0.11025326]
[1743962284786,0.57868426,80760.0,80759.0,0.10021485]
[1743962284995,0.58368426,80760.0,80759.0,0.10021485]
[1743962285412,0.57868426,80760.0,80759.0,0.10021485]
[1743962285825,0.58368426,80760.0,80759.0,0.10021485]
[1743962286055,1.46996523,80760.0,80759.0,0.10021485]
[1743962286268,1.62411523,80760.0,80759.0,0.10021485]
[1743962286676,1.66664254,80760.0,80759.0,0.10021485]
[1743962286894,1.62911523,80760.0,80759.0,0.10021485]
[1743962287109,1.00643623,80760.0,80759.0,0.10021485]
[1743962287334,0.58356426,80760.0,80759.0,0.11025326]
[1743962287544,0.24356426,80760.0,80759.0,0.10021485]
[1743962287760,0.03876426,80760.0,80759.0,0.10021485]
[1743962287968,0.24356426,80760.0,80759.0,0.11025326]
[1743962288426,0.24356426,80760.0,80759.0,0.14711485]
[1743962288640,0.23856426,80760.0,80759.0,0.31951782]
[1743962289062,0.24356426,80760.0,80759.0,0.31951782]
[1743962289278,0.24356426,80760.0,80759.0,0.19661485]
[1743962289485,0.23856426,80760.0,80759.0,0.19661485]
[1743962289689,0.24103955,80760.0,80759.0,0.19661485]
[1743962289915,0.24603955,80760.0,80759.0,0.10021485]
[1743962290092,1.53513323,80760.0,80759.0,0.10021485]
[1743962290322,1.14810523,80760.0,80759.0,0.10021485]
[1743962290500,1.1906271,80760.0,80759.0,0.10021485]
[1743962291368,1.0685191,80760.0,80759.0,0.10021485]
[1743962291579,0.8943681,80760.0,80759.0,0.10021485]
[1743962291955,0.8893681,80760.0,80759.0,0.08472887]
[1743962292406,0.8943681,80760.0,80759.0,0.08472887]
[1743962292829,0.8893681,80760.0,80759.0,0.08472887]
[1743962293029,0.8892481,80760.0,80759.0,0.08472887]
[1743962293240,0.8942481,80760.0,80759.0,0.08472887]
[1743962293449,0.90878895,80760.0,80759.0,0.08472887]
[1743962293662,1.26996895,80760.0,80759.0,0.08472887]
[1743962293875,1.32438895,80760.0,80759.0,0.08472887]
[1743962294119,1.32438895,80760.0,80741.0,0.00252]
[1743962294120,1.3094691,80760.0,80742.0,0.0461]
[1743962294336,0.39429491,80752.0,80742.0,0.0461]
[1743962294578,0.34,80759.0,80743.0,0.00958448]
[1743962294780,0.34,80757.0,80743.0,0.00958448]
[1743962294956,0.00247529,80756.0,80743.0,0.00958448]
[1743962295161,0.34,80752.0,80743.0,0.00958448]
[1743962295359,0.00247529,80751.0,80743.0,0.00958448]
[1743962295588,0.00247529,80751.0,80744.0,0.01052598]
[1743962295757,0.34,80752.0,80744.0,0.01052598]
[1743962295970,0.34,80752.0,80742.0,0.0461]
[1743962296294,0.005,80756.0,80742.0,0.0461]
[1743962296689,0.39429491,80752.0,80742.0,0.0461]
[1743962296922,0.34,80750.0,80742.0,0.0461]
[1743962297201,0.34,80748.0,80742.0,0.0461]
[1743962297426,0.34,80746.0,80742.0,0.0461]
[1743962297628,0.00247529,80745.0,80742.0,0.0461]
[1743962297770,0.02498527,80745.0,80742.0,0.0461]
[1743962298205,0.02250998,80744.0,80742.0,0.0461]
[1743962298818,0.02250998,80743.0,80742.0,0.0461]
[1743962299048,0.03376426,80743.0,80742.0,0.0461]
[1743962299611,0.50420826,80743.0,80742.0,0.0461]
[1743962299792,0.34,80742.0,80741.0,0.00297536]
[1743962300019,0.59137597,80742.0,80741.0,0.00297536]
[1743962300197,0.61388595,80742.0,80741.0,0.00297536]
[1743962300632,0.65136858,80742.0,80741.0,0.00297536]
[1743962300806,0.66262286,80742.0,80741.0,0.00297536]
[1743962301236,0.66262286,80742.0,80741.0,0.00274373]
[1743962302157,0.66262286,80742.0,80734.0,0.05]
[1743962302391,0.46290297,80735.0,80734.0,0.05004568]
[1743962302599,2.0999016,80735.0,80734.0,0.05004568]
[1743962302791,2.1840746,80735.0,80734.0,0.05004568]
[1743962303009,1.96563158,80735.0,80734.0,0.05004568]
[1743962303204,0.72737558,80735.0,80734.0,0.05004568]
[1743962303342,0.68989295,80735.0,80734.0,0.05004568]
[1743962303558,0.72740683,80735.0,80734.0,0.05004568]
[1743962303759,0.70114723,80735.0,80734.0,0.05004568]
[1743962303966,0.87256098,80735.0,80734.0,0.05004568]
[1743962304177,1.29415198,80735.0,80734.0,0.05004568]
[1743962304431,0.91801298,80735.0,80734.0,0.05004568]
[1743962304600,0.84916298,80735.0,80734.0,0.05004568]
[1743962305001,0.85416298,80735.0,80734.0,0.05004568]
[1743962305202,0.96914698,80735.0,80734.0,0.05004568]
[1743962305408,0.28075701,80735.0,80734.0,0.05004568]
[1743962306269,0.27575701,80735.0,80734.0,0.05004568]
[1743962306612,0.24324426,80735.0,80734.0,0.05004568]
[1743962307045,0.24324426,80735.0,80734.0,0.04383107]
[1743962307544,0.24316426,80735.0,80734.0,0.05128876]
[1743962307727,0.24316426,80735.0,80734.0,0.03763565]
[1743962307957,0.23816426,80735.0,80734.0,0.03763565]
[1743962308163,0.2807128,80735.0,80734.0,0.03763565]
[1743962309323,0.6207128,80735.0,80734.0,0.03763565]
[1743962309568,0.7203288,80735.0,80734.0,0.03763565]
[1743962309723,0.6157128,80735.0,80734.0,0.03763565]
[1743962310094,0.6157128,80735.0,80734.0,0.03620672]
[1743962311428,0.6207128,80735.0,80734.0,0.03620672]
[1743962312052,0.6157128,80735.0,80734.0,0.03620672]
[1743962312259,0.6207128,80735.0,80734.0,0.03620672]
[1743962312684,0.6157128,80735.0,80734.0,0.03620672]
[1743962313116,0.6207128,80735.0,80734.0,0.03620672]
[1743962313661,0.4163128,80735.0,80734.0,0.03620672]
[1743962313867,0.6205928,80735.0,80734.0,0.03620672]
[1743962314468,0.6155928,80735.0,80734.0,0.03620672]
[1743962315062,0.6155928,80735.0,80734.0,0.03637602]
[1743962315390,0.6205928,80735.0,80734.0,0.03637602]
[1743962315925,0.6155928,80735.0,80734.0,0.03637602]
[1743962316334,0.6205928,80735.0,80734.0,0.03637602]
[1743962316615,0.6205928,80735.0,80734.0,0.02708285]
[1743962316839,1.5281278,80735.0,80734.0,0.02708285]
[1743962316973,1.55358977,80735.0,80734.0,0.02708285]
[1743962317177,1.51829177,80735.0,80734.0,0.02688285]
[1743962317380,0.91412777,80735.0,80734.0,0.02688285]
[1743962317828,0.86737177,80735.0,80734.0,0.02688285]
[1743962318019,1.19188177,80735.0,80734.0,0.02688285]
[1743962318221,0.94188177,80735.0,80734.0,0.02688285]
[1743962319169,0.91846777,80735.0,80734.0,0.02688285]
[1743962319366,0.87034477,80735.0,80734.0,0.02688285]
[1743962319801,0.6205928,80735.0,80734.0,0.01201313]
[1743962320136,0.4163128,80735.0,80734.0,0.01201313]
[1743962320340,0.6204728,80735.0,80734.0,0.01201313]
[1743962320754,0.6154728,80735.0,80734.0,0.01201313]
[1743962321254,0.6204728,80735.0,80734.0,0.01201313]
[1743962321579,0.6154728,80735.0,80734.0,0.01105198]
[1743962321948,0.6204728,80735.0,80734.0,0.01105198]
[1743962322378,0.6204728,80735.0,80734.0,0.00908431]
[1743962322587,0.6154728,80735.0,80734.0,0.00908431]
[1743962323010,0.6154728,80735.0,80734.0,0.00288906]
[1743962323439,0.0713128,80735.0,80734.0,0.00155121]
[1743962323636,0.2753928,80735.0,80734.0,0.09815121]
[1743962323835,0.4113128,80735.0,80734.0,0.10798633]
[1743962324037,0.6203928,80735.0,80734.0,0.10798633]
[1743962324424,0.6153928,80735.0,80734.0,0.10798633]
[1743962324824,0.6203928,80735.0,80734.0,0.10798633]
[1743962325233,0.6153928,80735.0,80734.0,0.10798633]
[1743962325434,0.6153928,80735.0,80734.0,0.10711372]
[1743962325791,0.6203928,80735.0,80734.0,0.10711372]
[1743962326982,0.6153928,80735.0,80734.0,0.10711372]
[1743962327413,0.6203928,80735.0,80734.0,0.10711372]
[1743962327817,0.6153928,80735.0,80734.0,0.10711372]
[1743962328045,0.6203928,80735.0,80734.0,0.10711372]
[1743962328248,0.2803928,80735.0,80734.0,0.23001669]
[1743962328446,0.03910306,80735.0,80734.0,0.23001669]
[1743962328852,0.03910306,80735.0,80734.0,0.0972786]
[1743962329749,0.07677328,80735.0,80734.0,0.0972786]
[1743962329912,0.07177328,80735.0,80734.0,0.0972786]
[1743962330418,0.07677328,80735.0,80734.0,0.0972786]
[1743962330627,0.07177328,80735.0,80734.0,0.0972786]
[1743962331031,0.07677328,80735.0,80734.0,0.0972786]
[1743962331566,0.07677328,80735.0,80734.0,0.09632887]
[1743962331742,0.07677328,80735.0,80734.0,0.08703676]
[1743962332600,0.07677328,80735.0,80734.0,0.08559623]
[1743962332977,0.07677328,80735.0,80732.0,1.07036]
[1743962333175,0.04014551,80734.0,80733.0,0.00014564]
[1743962333438,0.03767022,80734.0,80733.0,0.09055659]
[1743962333655,0.58147022,80734.0,80733.0,0.09055659]
[1743962334068,0.6039802,80734.0,80733.0,0.00014564]
[1743962334462,0.61523448,80734.0,80733.0,0.00014564]
[1743962335108,0.62023448,80734.0,80733.0,0.00014564]
[1743962336890,0.61523448,80734.0,80733.0,0.00014564]
[1743962337297,0.41143448,80734.0,80733.0,0.07258831]
[1743962337503,0.62015448,80734.0,80733.0,0.00014564]
[1743962337705,0.62015448,80734.0,80732.0,1.07036]
[1743962337706,0.34,80733.0,80732.0,1.06954093]
[1743962337920,0.4001802,80733.0,80732.0,1.06963423]
[1743962338692,0.0601802,80733.0,80732.0,1.06963423]
[1743962338920,0.07143448,80733.0,80732.0,1.06953368]
[1743962339335,0.07143448,80733.0,80732.0,1.1097396]
[1743962339964,0.07643448,80733.0,80732.0,1.1097396]
[1743962340316,0.07643448,80733.0,80732.0,1.06953368]
[1743962341663,0.28007448,80733.0,80732.0,1.06953368]
[1743962341888,0.28007448,80733.0,80732.0,1.07203506]
[1743962342121,0.07643448,80733.0,80732.0,1.06274193]
[1743962342352,0.62007448,80733.0,80732.0,1.06274193]
[1743962342789,0.62007448,80733.0,80732.0,1.17902612]
[1743962342988,0.62007448,80733.0,80732.0,1.06274193]
[1743962343270,0.62007448,80733.0,80732.0,1.06291133]
[1743962345669,0.62007448,80733.0,80732.0,1.05671614]
[1743962346472,0.62007448,80733.0,80732.0,0.00276408]
[1743962346702,0.62007448,80733.0,80732.0,0.12009049]
[1743962346920,0.41643448,80733.0,80732.0,0.12009049]
[1743962347077,0.61995448,80733.0,80732.0,0.12009049]
[1743962347262,0.61495448,80733.0,80732.0,0.12009049]
[1743962347669,0.61995448,80733.0,80732.0,0.12009049]
[1743962348111,0.61495448,80733.0,80732.0,0.12009049]
[1743962348466,0.41643448,80733.0,80732.0,0.12009049]
[1743962348734,0.61991448,80733.0,80732.0,0.12009049]
[1743962349344,0.61987448,80733.0,80732.0,0.00276408]
[1743962350347,0.61487448,80733.0,80732.0,0.00276408]
[1743962350761,0.61987448,80733.0,80732.0,0.00276408]
[1743962351266,0.41643448,80733.0,80732.0,0.00276408]
[1743962351484,0.61483448,80733.0,80732.0,0.00276408]
[1743962351967,0.07143448,80733.0,80732.0,0.12566705]
[1743962352414,0.07643448,80733.0,80732.0,0.12566705]
[1743962352949,0.07643448,80733.0,80732.0,0.00276408]
[1743962353179,0.07643448,80733.0,80732.0,0.05276408]
[1743962353603,0.07143448,80733.0,80732.0,0.05276408]
[1743962353817,0.07643448,80733.0,80732.0,0.05276408]
[1743962354275,0.0601802,80733.0,80732.0,0.17509049]
[1743962354751,0.3351802,80733.0,80732.0,0.17509049]
[1743962354986,0.0651802,80733.0,80732.0,0.05276408]
[1743962355209,0.0601802,80733.0,80732.0,0.05276408]
[1743962355674,0.4001802,80733.0,80732.0,0.05276408]
[1743962356094,0.41649555,80733.0,80732.0,0.05276408]
[1743962356559,0.02969555,80733.0,80732.0,0.27416705]
[1743962356776,0.01631535,80733.0,80732.0,0.39706473]
[1743962357444,0.01165415,80733.0,80732.0,0.39706473]
[1743962357731,0.01665415,80733.0,80732.0,0.39706473]
[1743962358192,0.01165415,80733.0,80732.0,0.39706473]
[1743962358435,0.04937668,80733.0,80732.0,0.15126408]
[1743962358656,0.05437668,80733.0,80732.0,0.10246408]
[1743962358909,0.25757668,80733.0,80732.0,0.10246408]
[1743962359103,0.25257668,80733.0,80732.0,0.10246408]
[1743962359305,0.25757668,80733.0,80732.0,0.10246408]
[1743962359710,0.25757668,80733.0,80732.0,0.10203482]
[1743962359711,0.59757668,80733.0,80732.0,0.10203482]
[1743962360124,0.59757668,80733.0,80732.0,0.05276408]
[1743962360460,0.59257668,80733.0,80732.0,0.05276408]
[1743962360666,0.59757668,80733.0,80732.0,0.05276408]
[1743962361290,0.59257668,80733.0,80732.0,0.05276408]
[1743962361488,0.59757668,80733.0,80732.0,0.17566705]
[1743962361695,0.59757668,80733.0,80732.0,0.29856473]
[1743962362325,0.35665415,80733.0,80732.0,0.29856473]
[1743962362611,0.39437584,80733.0,80732.0,0.29856473]
[1743962363757,0.01665415,80733.0,80732.0,0.29856473]
[1743962363974,0.01165415,80733.0,80732.0,0.34616473]
[1743962364451,0.01665415,80733.0,80732.0,0.34616473]
[1743962364781,0.01165415,80733.0,80732.0,0.34616473]
[1743962365189,0.01665415,80733.0,80732.0,0.34616473]
[1743962365591,0.01165415,80733.0,80732.0,0.34616473]
[1743962366039,0.01665415,80733.0,80732.0,0.34616473]
[1743962367185,0.33436788,80733.0,80732.0,0.34616473]
[1743962367402,0.01165415,80733.0,80732.0,0.34616473]
[1743962367575,0.05436367,80733.0,80732.0,0.10036408]
[1743962368012,0.04936367,80733.0,80732.0,0.22574416]
[1743962368188,0.01165415,80733.0,80732.0,0.22326705]
[1743962368545,0.01665415,80733.0,80732.0,0.34616473]
[1743962369665,0.01165415,80733.0,80732.0,0.34616473]
[1743962370682,0.01165415,80733.0,80732.0,0.41716473]
[1743962370881,0.01665415,80733.0,80732.0,0.41716473]
[1743962371271,0.01165415,80733.0,80732.0,0.41716473]
[1743962371480,0.01665415,80733.0,80732.0,0.41716473]
[1743962372068,0.01165415,80733.0,80732.0,0.41716473]
[1743962372295,0.01665415,80733.0,80732.0,0.41716473]
[1743962372695,0.01665415,80733.0,80732.0,0.39216473]
[1743962373173,0.01665415,80733.0,80732.0,0.41716473]
[1743962373958,0.01165415,80733.0,80732.0,0.41716473]
[1743962374161,0.01665415,80733.0,80732.0,0.41716473]
[1743962374614,0.01165415,80733.0,80732.0,0.41716473]
[1743962374831,0.01665415,80733.0,80732.0,0.26926705]
[1743962375429,0.05435826,80733.0,80732.0,0.14636408]
[1743962376057,0.05435826,80733.0,80732.0,0.10036408]
[1743962376871,0.05435826,80733.0,80732.0,0.09416959]
[1743962377072,0.05435826,80733.0,80732.0,0.21706727]
[1743962377943,0.05435826,80733.0,80732.0,0.33997024]
[1743962378253,0.01665415,80733.0,80732.0,0.33997024]
[1743962379068,0.01665415,80733.0,80732.0,0.33861787]
[1743962379810,0.01165415,80733.0,80732.0,0.21572019]
[1743962380016,0.04936405,80733.0,80732.0,0.21572019]
[1743962380219,0.05436405,80733.0,80732.0,0.21572019]
[1743962380481,0.05436405,80733.0,80732.0,0.09281722]
[1743962380721,0.38936405,80733.0,80732.0,0.04521722]
[1743962380928,1.24328602,80733.0,80732.0,0.04521722]
[1743962381139,1.24328602,80733.0,80732.0,0.0359238]
[1743962381140,1.39828602,80733.0,80732.0,0.0359238]
[1743962381342,1.39828602,80733.0,80729.0,1.1705]
[1743962381551,0.34,80731.0,80729.0,1.1646443]
[1743962381760,1.17240116,80730.0,80729.0,1.1646443]
[1743962381952,1.14781987,80730.0,80729.0,1.1646443]
[1743962382132,1.34617765,80730.0,80729.0,1.1646443]
[1743962382767,1.357493,80730.0,80729.0,1.1646443]
[1743962383651,0.534536,80730.0,80729.0,1.1646443]
[1743962383881,1.48806,80730.0,80729.0,1.1646443]
[1743962384087,1.505245,80730.0,80729.0,1.1646443]
[1743962384290,1.483539,80730.0,80729.0,1.1646443]
[1743962384490,1.478539,80730.0,80729.0,1.1563098]
[1743962384628,1.478539,80730.0,80729.0,1.14778732]
[1743962384845,1.48346197,80730.0,80729.0,1.14778732]
[1743962385463,0.61923303,80730.0,80729.0,1.26258299]
[1743962385673,0.24144313,80730.0,80729.0,1.26258299]
[1743962386095,0.23644313,80730.0,80729.0,1.26258299]
[1743962386535,0.24144313,80730.0,80729.0,1.26258299]
[1743962387152,0.23644313,80730.0,80729.0,1.26161608]
[1743962387378,0.24144313,80730.0,80729.0,1.26161608]
[1743962388013,0.23644313,80730.0,80729.0,1.26161608]
[1743962388212,0.03392313,80730.0,80729.0,1.43117229]
[1743962389828,0.03892313,80730.0,80729.0,1.43117229]
[1743962390141,0.03892313,80730.0,80729.0,1.47687229]
[1743962390351,0.03392313,80730.0,80729.0,2.00187229]
[1743962390760,0.0003388,80733.0,80732.0,0.03]
[1743962391006,0.23417707,80780.0,80732.0,0.03]
[1743962391007,0.23417707,80780.0,80746.0,0.025]
[1743962391135,0.2024,80769.0,80749.0,0.025]
[1743962391337,0.4156,80799.0,80749.0,0.025]
[1743962391338,0.23417707,80790.0,80755.0,0.14790297]
[1743962391547,0.0491,80810.0,80767.0,0.0914]
[1743962391760,0.0491,80810.0,80772.0,0.12290297]
[1743962391761,0.23417707,80810.0,80772.0,0.12290297]
[1743962391979,0.20236,80808.0,80784.0,0.012378]
[1743962392196,0.20236,80808.0,80786.0,0.12290297]
[1743962392197,0.34,80807.0,80786.0,0.12290297]
[1743962392395,0.20236,80808.0,80787.0,0.0489]
[1743962392614,0.20236,80808.0,80788.0,0.14822132]
[1743962392827,0.20281623,80808.0,80788.0,0.14822132]
[1743962393244,0.00045623,80808.0,80797.0,0.025]
[1743962393449,0.00045623,80808.0,80804.0,0.12290297]
[1743962393650,0.00045623,80808.0,80806.0,0.13744382]
[1743962393859,0.00045623,80808.0,80805.0,1.11207885]
[1743962393860,0.00045623,80808.0,80807.0,0.12290297]
[1743962394059,0.00645623,80808.0,80807.0,0.12290297]
[1743962394468,0.00045623,80808.0,80807.0,0.12290297]
[1743962394900,0.00645623,80808.0,80807.0,0.12290297]